[Event "Titled Tuesday Blitz August 15 Early 2023"]
[White "Nakamura, Hikaru"]
[Black "Nugumanov, Bakhtiyar"]
[WhiteFideId "2016192"]
[BlackFideId "13701797"]
[WhiteElo "3255"]
[BlackElo "2075"]
[Result "0-1"]
[Round "2"]
[TimeControl "180+1"]
[Date "2023.08.15"]
[WhiteClock "0:00:34"]
[BlackClock "0:00:32"]
[Board "126"]

1. Nf3 {[%clk 0:03:00]}  Nf6 {[%clk 0:02:59]} 2. g3 {[%clk 0:03:01]}  g6 {[%clk 0:02:59]} 3. Bg2 {[%clk 0:03:02]}  Bg7 {[%clk 0:02:59]} 4. O-O {[%clk 0:03:03]}  O-O {[%clk 0:02:59]} 5. d3 {[%clk 0:03:04]}  d6 {[%clk 0:02:57]} 6. Nbd2 {[%clk 0:03:05]}  e5 {[%clk 0:02:57]} 7. e4 {[%clk 0:03:06]}  Nc6 {[%clk 0:02:56]} 8. Re1 {[%clk 0:03:06]}  Re8 {[%clk 0:02:54]} 9. c3 {[%clk 0:03:07]}  a5 {[%clk 0:02:53]} 10. a4 {[%clk 0:03:06]}  h6 {[%clk 0:02:51]} 11. Nc4 {[%clk 0:03:06]}  Be6 {[%clk 0:02:50]} 12. Na3 {[%clk 0:03:06]}  Qd7 {[%clk 0:02:47]} 13. Nb5 {[%clk 0:03:05]}  d5 {[%clk 0:02:43]} 14. exd5 {[%clk 0:03:01]}  Nxd5 {[%clk 0:02:43]} 15. d4 {[%clk 0:03:02]}  Bg4 {[%clk 0:02:40]} 16. dxe5 {[%clk 0:02:49]}  Nxe5 {[%clk 0:02:30]} 17. Nxe5 {[%clk 0:02:49]}  Bxd1 {[%clk 0:02:29]} 18. Rxd1 {[%clk 0:02:41]}  Rxe5 {[%clk 0:02:24]} 19. Bf4 {[%clk 0:02:42]}  c6 {[%clk 0:02:07]} 20. Bxe5 {[%clk 0:02:37]}  Bxe5 {[%clk 0:02:08]} 21. Na3 {[%clk 0:02:37]}  Qe6 {[%clk 0:02:06]} 22. Re1 {[%clk 0:02:37]}  Qf6 {[%clk 0:02:02]} 23. Rad1 {[%clk 0:02:38]}  h5 {[%clk 0:02:00]} 24. Nc4 {[%clk 0:02:37]}  Bc7 {[%clk 0:02:00]} 25. Rd3 {[%clk 0:02:37]}  Rd8 {[%clk 0:01:54]} 26. Rf3 {[%clk 0:02:34]}  Qg7 {[%clk 0:01:53]} 27. h4 {[%clk 0:02:31]}  Qf8 {[%clk 0:01:43]} 28. Bf1 {[%clk 0:02:10]}  Re8 {[%clk 0:01:39]} 29. Rd1 {[%clk 0:02:07]}  Re6 {[%clk 0:01:39]} 30. Bh3 {[%clk 0:02:04]}  Rf6 {[%clk 0:01:33]} 31. Rfd3 {[%clk 0:02:04]}  Qc5 {[%clk 0:01:31]} 32. Rd4 {[%clk 0:02:04]}  Qe7 {[%clk 0:01:24]} 33. Bg2 {[%clk 0:02:01]}  Qe2 {[%clk 0:01:22]} 34. Rf1 {[%clk 0:01:56]}  Kg7 {[%clk 0:01:15]} 35. b3 {[%clk 0:01:08]}  Bb6 {[%clk 0:01:00]} 36. Rd2 {[%clk 0:00:44]}  Qe6 {[%clk 0:00:45]} 37. Nxb6 {[%clk 0:00:36]}  Nxb6 {[%clk 0:00:44]} 38. c4 {[%clk 0:00:37]}  Nd7 {[%clk 0:00:41]} 39. Rd3 {[%clk 0:00:36]}  Nc5 {[%clk 0:00:39]} 40. Re3 {[%clk 0:00:37]}  Qd6 {[%clk 0:00:40]} 41. Bh3 {[%clk 0:00:38]}  Qd2 {[%clk 0:00:36]} 42. Bg2 {[%clk 0:00:36]}  Rxf2 {[%clk 0:00:33]} 43. Rxf2 {[%clk 0:00:35]}  Qxe3 {[%clk 0:00:32]} 44. Kf1 {[%clk 0:00:34]}  Nd3 {[%clk 0:00:32]} 0-1


[Site "https://www.chess.com"]

[Event "Titled Tuesday Blitz August 15 Early 2023"]
[White "Keymer, Vincent"]
[Black "KorolDimitriy75"]
[WhiteFideId "12940690"]
[WhiteElo "2945"]
[BlackElo "2401"]
[Result "1-0"]
[Round "2"]
[TimeControl "180+1"]
[Date "2023.08.15"]
[WhiteClock "0:01:34"]
[BlackClock "0:00:00"]
[Board "128"]

1. a3 {[%clk 0:02:58]}  c5 {[%clk 0:03:00]} 2. b4 {[%clk 0:02:57]}  d6 {[%clk 0:02:55]} 3. Bb2 {[%clk 0:02:54]}  Nd7 {[%clk 0:02:53]} 4. Nf3 {[%clk 0:02:50]}  Ngf6 {[%clk 0:02:50]} 5. bxc5 {[%clk 0:02:47]}  dxc5 {[%clk 0:02:49]} 6. g3 {[%clk 0:02:41]}  g6 {[%clk 0:02:48]} 7. Bg2 {[%clk 0:02:42]}  Bg7 {[%clk 0:02:49]} 8. O-O {[%clk 0:02:42]}  O-O {[%clk 0:02:49]} 9. d3 {[%clk 0:02:38]}  Qc7 {[%clk 0:02:40]} 10. a4 {[%clk 0:02:27]}  b6 {[%clk 0:02:37]} 11. a5 {[%clk 0:02:22]}  Bb7 {[%clk 0:02:37]} 12. Na3 {[%clk 0:02:20]}  Bc6 {[%clk 0:02:32]} 13. c4 {[%clk 0:02:14]}  a6 {[%clk 0:01:39]} 14. axb6 {[%clk 0:02:13]}  Qxb6 {[%clk 0:01:29]} 15. Rb1 {[%clk 0:02:07]}  Qc7 {[%clk 0:01:16]} 16. Nc2 {[%clk 0:02:07]}  Rfb8 {[%clk 0:01:14]} 17. e4 {[%clk 0:01:52]}  Ba4 {[%clk 0:00:20]} 18. Qc1 {[%clk 0:01:50]}  Ra7 {[%clk 0:00:17]} 19. Ne3 {[%clk 0:01:46]}  e6 {[%clk 0:00:16]} 20. Ra1 {[%clk 0:01:36]}  Bc6 {[%clk 0:00:15]} 21. Bc3 {[%clk 0:01:36]}  Ng4 {[%clk 0:00:00]} 22. Nxg4 {[%clk 0:01:34]} 1-0


[Site "https://www.chess.com"]

[Event "Titled Tuesday Blitz August 15 Early 2023"]
[White "Lorenzo De La Riva, Lazaro"]
[Black "Moskalenko, Alexander"]
[WhiteFideId "2268809"]
[BlackFideId "4155351"]
[WhiteElo "2400"]
[BlackElo "2897"]
[Result "0-1"]
[Round "2"]
[TimeControl "180+1"]
[Date "2023.08.15"]
[WhiteClock "0:00:00"]
[BlackClock "0:00:30"]
[Board "129"]

1. c4 {[%clk 0:03:00]}  f5 {[%clk 0:02:56]} 2. g3 {[%clk 0:02:59]}  g6 {[%clk 0:02:56]} 3. Bg2 {[%clk 0:02:59]}  Bg7 {[%clk 0:02:57]} 4. h4 {[%clk 0:02:59]}  Nf6 {[%clk 0:02:58]} 5. h5 {[%clk 0:02:57]}  O-O {[%clk 0:02:57]} 6. hxg6 {[%clk 0:02:55]}  hxg6 {[%clk 0:02:58]} 7. d4 {[%clk 0:02:55]}  d6 {[%clk 0:02:58]} 8. Nc3 {[%clk 0:02:54]}  e5 {[%clk 0:02:59]} 9. Bg5 {[%clk 0:02:53]}  c6 {[%clk 0:02:43]} 10. Qd2 {[%clk 0:02:47]}  Qe7 {[%clk 0:02:43]} 11. Nf3 {[%clk 0:02:43]}  e4 {[%clk 0:02:38]} 12. Nh4 {[%clk 0:02:42]}  Qf7 {[%clk 0:02:39]} 13. O-O-O {[%clk 0:02:32]}  Ng4 {[%clk 0:02:30]} 14. Rdf1 {[%clk 0:02:28]}  Na6 {[%clk 0:02:13]} 15. f3 {[%clk 0:02:27]}  exf3 {[%clk 0:02:01]} 16. Bxf3 {[%clk 0:02:27]}  Qxc4 {[%clk 0:01:40]} 17. Nxg6 {[%clk 0:02:24]}  Re8 {[%clk 0:01:40]} 18. Bxg4 {[%clk 0:02:13]}  fxg4 {[%clk 0:01:38]} 19. Ne7+ {[%clk 0:02:07]}  Rxe7 {[%clk 0:01:38]} 20. Bxe7 {[%clk 0:02:08]}  Nb4 {[%clk 0:01:39]} 21. Bf6 {[%clk 0:00:46]}  Nxa2+ {[%clk 0:01:34]} 22. Kc2 {[%clk 0:00:46]}  Nxc3 {[%clk 0:01:29]} 23. Rh8+ {[%clk 0:00:30]}  Kf7 {[%clk 0:01:29]} 24. Bxg7+ {[%clk 0:00:28]}  Ke6 {[%clk 0:01:28]} 25. bxc3 {[%clk 0:00:14]}  Kd7 {[%clk 0:01:22]} 26. Rhf8 {[%clk 0:00:11]}  Kc7 {[%clk 0:01:22]} 27. R1f2 {[%clk 0:00:11]}  a5 {[%clk 0:01:16]} 28. Qd3 {[%clk 0:00:11]}  Qa2+ {[%clk 0:01:07]} 29. Kc1 {[%clk 0:00:11]}  a4 {[%clk 0:01:04]} 30. e4 {[%clk 0:00:11]}  Qa3+ {[%clk 0:01:02]} 31. Rb2 {[%clk 0:00:09]}  Ra5 {[%clk 0:00:57]} 32. Rf7+ {[%clk 0:00:10]}  Kb8 {[%clk 0:00:54]} 33. Qc2 {[%clk 0:00:06]}  Rb5 {[%clk 0:00:52]} 34. e5 {[%clk 0:00:07]}  Be6 {[%clk 0:00:46]} 35. Rf8+ {[%clk 0:00:06]}  Ka7 {[%clk 0:00:47]} 36. d5 {[%clk 0:00:06]}  Bxd5 {[%clk 0:00:43]} 37. exd6 {[%clk 0:00:07]}  Be4 {[%clk 0:00:34]} 38. Bd4+ {[%clk 0:00:07]}  b6 {[%clk 0:00:34]} 39. Qf2 {[%clk 0:00:03]}  Qa1+ {[%clk 0:00:33]} 40. Kd2 {[%clk 0:00:03]}  Rxb2+ {[%clk 0:00:34]} 41. Ke3 {[%clk 0:00:04]}  Rxf2 {[%clk 0:00:34]} 42. Rxf2 {[%clk 0:00:03]}  Bf3 {[%clk 0:00:29]} 43. d7 {[%clk 0:00:03]}  Qe1+ {[%clk 0:00:29]} 44. Kf4 {[%clk 0:00:02]}  Qe4+ {[%clk 0:00:29]} 45. Kg5 {[%clk 0:00:00]}  Qd5+ {[%clk 0:00:30]} 0-1


[Site "https://www.chess.com"]

[Event "Titled Tuesday Blitz August 15 Early 2023"]
[White "Bernadskiy, Vitaliy"]
[Black "Namitbir Singh Walia"]
[WhiteFideId "14100371"]
[BlackFideId "35071068"]
[WhiteElo "2851"]
[BlackElo "2400"]
[Result "1-0"]
[Round "2"]
[TimeControl "180+1"]
[Date "2023.08.15"]
[WhiteClock "0:01:17"]
[BlackClock "0:00:17"]
[Board "130"]

1. b3 {[%clk 0:03:00]}  e5 {[%clk 0:02:58]} 2. Bb2 {[%clk 0:02:59]}  Nc6 {[%clk 0:02:59]} 3. Nf3 {[%clk 0:02:59]}  d6 {[%clk 0:02:58]} 4. d4 {[%clk 0:02:59]}  g6 {[%clk 0:02:47]} 5. dxe5 {[%clk 0:02:45]}  Bg7 {[%clk 0:02:46]} 6. Na3 {[%clk 0:02:44]}  Nxe5 {[%clk 0:02:40]} 7. Nxe5 {[%clk 0:02:42]}  Bxe5 {[%clk 0:02:39]} 8. Bxe5 {[%clk 0:02:40]}  dxe5 {[%clk 0:02:40]} 9. Qxd8+ {[%clk 0:02:40]}  Kxd8 {[%clk 0:02:41]} 10. O-O-O+ {[%clk 0:02:39]}  Ke7 {[%clk 0:02:41]} 11. g3 {[%clk 0:02:35]}  Be6 {[%clk 0:02:23]} 12. Nb5 {[%clk 0:02:33]}  c6 {[%clk 0:02:19]} 13. Nc7 {[%clk 0:01:58]}  Rc8 {[%clk 0:02:19]} 14. Nxe6 {[%clk 0:01:57]}  Kxe6 {[%clk 0:02:20]} 15. Bh3+ {[%clk 0:01:57]}  f5 {[%clk 0:02:20]} 16. e4 {[%clk 0:01:55]}  Nf6 {[%clk 0:02:20]} 17. f3 {[%clk 0:01:51]}  Rhd8 {[%clk 0:02:08]} 18. Rde1 {[%clk 0:01:51]}  Rd4 {[%clk 0:01:33]} 19. Re2 {[%clk 0:01:42]}  c5 {[%clk 0:01:19]} 20. Rhe1 {[%clk 0:01:36]}  Nd7 {[%clk 0:01:05]} 21. f4 {[%clk 0:01:31]}  Kf6 {[%clk 0:00:59]} 22. exf5 {[%clk 0:01:29]}  gxf5 {[%clk 0:00:55]} 23. fxe5+ {[%clk 0:01:29]}  Ke6 {[%clk 0:00:55]} 24. Rf1 {[%clk 0:01:28]}  Rf8 {[%clk 0:00:55]} 25. Rxf5 {[%clk 0:01:22]}  Rxf5 {[%clk 0:00:51]} 26. Rf2 {[%clk 0:01:23]}  Nxe5 {[%clk 0:00:42]} 27. Bxf5+ {[%clk 0:01:22]}  Ke7 {[%clk 0:00:29]} 28. Bxh7 {[%clk 0:01:23]}  Ng4 {[%clk 0:00:29]} 29. Re2+ {[%clk 0:01:21]}  Kf6 {[%clk 0:00:29]} 30. Bd3 {[%clk 0:01:21]}  Ne5 {[%clk 0:00:28]} 31. Kd2 {[%clk 0:01:20]}  Nxd3 {[%clk 0:00:25]} 32. cxd3 {[%clk 0:01:21]}  Rd7 {[%clk 0:00:25]} 33. Rf2+ {[%clk 0:01:21]}  Kg5 {[%clk 0:00:24]} 34. Rf4 {[%clk 0:01:21]}  b6 {[%clk 0:00:25]} 35. h4+ {[%clk 0:01:21]}  Kh5 {[%clk 0:00:25]} 36. Ke3 {[%clk 0:01:22]}  Rg7 {[%clk 0:00:25]} 37. Kf3 {[%clk 0:01:21]}  Rd7 {[%clk 0:00:26]} 38. Rf5+ {[%clk 0:01:21]}  Kg6 {[%clk 0:00:27]} 39. Rg5+ {[%clk 0:01:18]}  Kf6 {[%clk 0:00:23]} 40. Ke3 {[%clk 0:01:18]}  Re7+ {[%clk 0:00:23]} 41. Kf4 {[%clk 0:01:18]}  Re1 {[%clk 0:00:22]} 42. Rf5+ {[%clk 0:01:17]}  Kg6 {[%clk 0:00:20]} 43. h5+ {[%clk 0:01:18]}  Kh6 {[%clk 0:00:21]} 44. Rf6+ {[%clk 0:01:16]}  Kg7 {[%clk 0:00:20]} 45. Rg6+ {[%clk 0:01:16]}  Kh7 {[%clk 0:00:19]} 46. g4 {[%clk 0:01:16]}  Rf1+ {[%clk 0:00:18]} 47. Kg5 {[%clk 0:01:15]}  Ra1 {[%clk 0:00:17]} 48. Rd6 {[%clk 0:01:15]}  Rxa2 {[%clk 0:00:18]} 49. Rd7+ {[%clk 0:01:16]}  Kg8 {[%clk 0:00:18]} 50. Kg6 {[%clk 0:01:16]}  Kf8 {[%clk 0:00:19]} 51. h6 {[%clk 0:01:17]}  Rh2 {[%clk 0:00:18]} 52. h7 {[%clk 0:01:17]}  Ke8 {[%clk 0:00:17]} 53. Rxa7 {[%clk 0:01:17]} 1-0


[Site "https://www.chess.com"]

[Event "Titled Tuesday Blitz August 15 Early 2023"]
[White "Rietze, Clemens, Dr."]
[Black "Lamaze, Simon"]
[WhiteFideId "24620351"]
[BlackFideId "36069264"]
[WhiteElo "2378"]
[BlackElo "2713"]
[Result "0-1"]
[Round "2"]
[TimeControl "180+1"]
[Date "2023.08.15"]
[WhiteClock "0:00:10"]
[BlackClock "0:00:42"]
[Board "143"]

1. d4 {[%clk 0:03:00]}  d5 {[%clk 0:02:59]} 2. c4 {[%clk 0:03:01]}  e6 {[%clk 0:02:58]} 3. Nf3 {[%clk 0:03:01]}  Nf6 {[%clk 0:02:58]} 4. Nc3 {[%clk 0:03:02]}  Be7 {[%clk 0:02:57]} 5. Bf4 {[%clk 0:03:02]}  O-O {[%clk 0:02:57]} 6. e3 {[%clk 0:03:02]}  b6 {[%clk 0:02:58]} 7. Be2 {[%clk 0:03:03]}  Bb7 {[%clk 0:02:58]} 8. O-O {[%clk 0:03:03]}  Nbd7 {[%clk 0:02:58]} 9. Qc2 {[%clk 0:02:58]}  a6 {[%clk 0:02:56]} 10. cxd5 {[%clk 0:02:55]}  exd5 {[%clk 0:02:56]} 11. Rfd1 {[%clk 0:02:54]}  Rc8 {[%clk 0:02:56]} 12. Rac1 {[%clk 0:02:52]}  Re8 {[%clk 0:02:56]} 13. h3 {[%clk 0:02:51]}  Nf8 {[%clk 0:02:56]} 14. Ne5 {[%clk 0:02:50]}  Ne6 {[%clk 0:02:55]} 15. Bh2 {[%clk 0:02:50]}  c5 {[%clk 0:02:55]} 16. dxc5 {[%clk 0:02:50]}  bxc5 {[%clk 0:02:56]} 17. Qb1 {[%clk 0:02:39]}  d4 {[%clk 0:02:52]} 18. Na4 {[%clk 0:02:36]}  Be4 {[%clk 0:02:32]} 19. Bd3 {[%clk 0:02:27]}  Ba8 {[%clk 0:02:23]} 20. Bc4 {[%clk 0:02:13]}  Bd6 {[%clk 0:02:22]} 21. exd4 {[%clk 0:01:42]}  cxd4 {[%clk 0:02:22]} 22. Bxe6 {[%clk 0:01:43]}  Rxe6 {[%clk 0:02:22]} 23. Rxd4 {[%clk 0:01:39]}  Rxc1+ {[%clk 0:02:18]} 24. Qxc1 {[%clk 0:01:39]}  Qe8 {[%clk 0:02:17]} 25. Rc4 {[%clk 0:01:13]}  Bb7 {[%clk 0:02:11]} 26. f4 {[%clk 0:01:02]}  Ne4 {[%clk 0:02:07]} 27. Nc6 {[%clk 0:00:51]}  Bf8 {[%clk 0:01:52]} 28. Nd4 {[%clk 0:00:39]}  Rg6 {[%clk 0:01:46]} 29. f5 {[%clk 0:00:35]}  Rg5 {[%clk 0:01:11]} 30. Bf4 {[%clk 0:00:35]}  Rxg2+ {[%clk 0:00:57]} 31. Kxg2 {[%clk 0:00:35]}  Nd2+ {[%clk 0:00:58]} 32. Kf2 {[%clk 0:00:22]}  Nxc4 {[%clk 0:00:57]} 33. Qxc4 {[%clk 0:00:23]}  Qe4 {[%clk 0:00:56]} 34. Be3 {[%clk 0:00:18]}  Qg2+ {[%clk 0:00:54]} 35. Ke1 {[%clk 0:00:19]}  Qxh3 {[%clk 0:00:52]} 36. Kd2 {[%clk 0:00:18]}  Be4 {[%clk 0:00:49]} 37. f6 {[%clk 0:00:17]}  gxf6 {[%clk 0:00:47]} 38. Nc5 {[%clk 0:00:17]}  Bg6 {[%clk 0:00:46]} 39. Nd3 {[%clk 0:00:16]}  Qg2+ {[%clk 0:00:45]} 40. Kc3 {[%clk 0:00:16]}  Qe4 {[%clk 0:00:43]} 41. Nf2 {[%clk 0:00:15]}  Qxe3+ {[%clk 0:00:42]} 42. Nd3 {[%clk 0:00:10]}  h5 {[%clk 0:00:42]} 0-1


[Site "https://www.chess.com"]

[Event "Titled Tuesday Blitz August 15 Early 2023"]
[White "Gu, Xiaobing"]
[Black "Vaibhav, Suri"]
[WhiteFideId "8602611"]
[BlackFideId "5045185"]
[WhiteElo "2378"]
[BlackElo "2711"]
[Result "0-1"]
[Round "2"]
[TimeControl "180+1"]
[Date "2023.08.15"]
[WhiteClock "0:00:25"]
[BlackClock "0:00:58"]
[Board "144"]

1. e4 {[%clk 0:02:58]}  c5 {[%clk 0:02:55]} 2. Nf3 {[%clk 0:02:54]}  Nc6 {[%clk 0:02:53]} 3. Bb5 {[%clk 0:02:52]}  e5 {[%clk 0:02:51]} 4. Nc3 {[%clk 0:02:35]}  Bd6 {[%clk 0:02:49]} 5. a4 {[%clk 0:02:28]}  Nge7 {[%clk 0:02:42]} 6. d3 {[%clk 0:02:24]}  O-O {[%clk 0:02:42]} 7. O-O {[%clk 0:02:20]}  Ng6 {[%clk 0:02:39]} 8. Bg5 {[%clk 0:02:07]}  Be7 {[%clk 0:02:38]} 9. Be3 {[%clk 0:02:03]}  d6 {[%clk 0:02:31]} 10. Bc4 {[%clk 0:01:53]}  Kh8 {[%clk 0:02:29]} 11. Nd5 {[%clk 0:01:41]}  Be6 {[%clk 0:02:04]} 12. c3 {[%clk 0:01:38]}  h6 {[%clk 0:02:00]} 13. d4 {[%clk 0:01:34]}  cxd4 {[%clk 0:01:46]} 14. cxd4 {[%clk 0:01:34]}  Bg4 {[%clk 0:01:46]} 15. Be2 {[%clk 0:01:11]}  Bxf3 {[%clk 0:01:31]} 16. Bxf3 {[%clk 0:01:11]}  Bg5 {[%clk 0:01:31]} 17. dxe5 {[%clk 0:01:05]}  Bxe3 {[%clk 0:01:22]} 18. Nxe3 {[%clk 0:01:03]}  dxe5 {[%clk 0:01:22]} 19. Be2 {[%clk 0:00:51]}  Nd4 {[%clk 0:01:20]} 20. Bc4 {[%clk 0:00:50]}  Rc8 {[%clk 0:01:17]} 21. Bd5 {[%clk 0:00:48]}  Nf4 {[%clk 0:01:06]} 22. Qg4 {[%clk 0:00:43]}  f5 {[%clk 0:01:00]} 23. exf5 {[%clk 0:00:25]}  Nxd5 {[%clk 0:00:58]} 0-1


[Site "https://www.chess.com"]

[Event "Titled Tuesday Blitz August 15 Early 2023"]
[White "Akobian, Varuzhan"]
[Black "Topalov, Aleksandar"]
[WhiteFideId "13300580"]
[BlackFideId "925659"]
[WhiteElo "2709"]
[BlackElo "2375"]
[Result "1-0"]
[Round "2"]
[TimeControl "180+1"]
[Date "2023.08.15"]
[WhiteClock "0:00:22"]
[BlackClock "0:00:11"]
[Board "145"]

1. d4 {[%clk 0:03:00]}  e6 {[%clk 0:02:58]} 2. c4 {[%clk 0:03:01]}  f5 {[%clk 0:02:56]} 3. Nc3 {[%clk 0:03:00]}  Nf6 {[%clk 0:02:53]} 4. Qc2 {[%clk 0:03:00]}  Bb4 {[%clk 0:02:43]} 5. Bd2 {[%clk 0:03:00]}  O-O {[%clk 0:02:41]} 6. Nf3 {[%clk 0:02:59]}  b6 {[%clk 0:02:38]} 7. a3 {[%clk 0:02:57]}  Bxc3 {[%clk 0:02:38]} 8. Bxc3 {[%clk 0:02:58]}  Ne4 {[%clk 0:02:38]} 9. g3 {[%clk 0:02:55]}  Bb7 {[%clk 0:02:37]} 10. Bg2 {[%clk 0:02:55]}  Nxc3 {[%clk 0:02:34]} 11. Qxc3 {[%clk 0:02:55]}  d6 {[%clk 0:02:33]} 12. d5 {[%clk 0:02:39]}  exd5 {[%clk 0:02:11]} 13. Nd4 {[%clk 0:02:38]}  c5 {[%clk 0:01:41]} 14. Ne6 {[%clk 0:02:37]}  Qe7 {[%clk 0:01:41]} 15. cxd5 {[%clk 0:02:21]}  Rf6 {[%clk 0:01:38]} 16. O-O {[%clk 0:02:21]}  Nd7 {[%clk 0:01:35]} 17. e4 {[%clk 0:02:15]}  fxe4 {[%clk 0:01:27]} 18. Bxe4 {[%clk 0:02:11]}  Nf8 {[%clk 0:01:27]} 19. Rae1 {[%clk 0:01:49]}  Nxe6 {[%clk 0:00:58]} 20. dxe6 {[%clk 0:01:43]}  d5 {[%clk 0:00:58]} 21. Bg2 {[%clk 0:01:39]}  Rxe6 {[%clk 0:00:53]} 22. Rxe6 {[%clk 0:01:38]}  Qxe6 {[%clk 0:00:53]} 23. Re1 {[%clk 0:01:39]}  Qf7 {[%clk 0:00:43]} 24. Qd3 {[%clk 0:01:23]}  d4 {[%clk 0:00:20]} 25. Bxb7 {[%clk 0:01:20]}  Qxb7 {[%clk 0:00:20]} 26. Qc4+ {[%clk 0:01:20]}  Kh8 {[%clk 0:00:20]} 27. b4 {[%clk 0:01:20]}  Qc7 {[%clk 0:00:18]} 28. bxc5 {[%clk 0:01:15]}  bxc5 {[%clk 0:00:17]} 29. h4 {[%clk 0:01:15]}  h6 {[%clk 0:00:17]} 30. Rc1 {[%clk 0:00:51]}  Rc8 {[%clk 0:00:17]} 31. Qd5 {[%clk 0:00:51]}  Qc6 {[%clk 0:00:16]} 32. Qc4 {[%clk 0:00:44]}  a5 {[%clk 0:00:13]} 33. a4 {[%clk 0:00:37]}  Rd8 {[%clk 0:00:12]} 34. Qxc5 {[%clk 0:00:35]}  Qxc5 {[%clk 0:00:12]} 35. Rxc5 {[%clk 0:00:36]}  d3 {[%clk 0:00:13]} 36. Rc1 {[%clk 0:00:36]}  Rd4 {[%clk 0:00:13]} 37. Rd1 {[%clk 0:00:35]}  Kg8 {[%clk 0:00:13]} 38. Kg2 {[%clk 0:00:35]}  Kf7 {[%clk 0:00:13]} 39. Kf3 {[%clk 0:00:35]}  Ke6 {[%clk 0:00:14]} 40. Ke3 {[%clk 0:00:35]}  Kd5 {[%clk 0:00:13]} 41. Rxd3 {[%clk 0:00:34]}  Rxd3+ {[%clk 0:00:11]} 42. Kxd3 {[%clk 0:00:35]}  Kc5 {[%clk 0:00:11]} 43. Kc3 {[%clk 0:00:36]}  Kd5 {[%clk 0:00:11]} 44. f3 {[%clk 0:00:34]}  Kc5 {[%clk 0:00:10]} 45. h5 {[%clk 0:00:30]}  Kd5 {[%clk 0:00:10]} 46. g4 {[%clk 0:00:30]}  Ke5 {[%clk 0:00:09]} 47. Kc4 {[%clk 0:00:22]}  Kf4 {[%clk 0:00:09]} 48. Kb5 {[%clk 0:00:23]}  Kxf3 {[%clk 0:00:10]} 49. Kxa5 {[%clk 0:00:24]}  Kxg4 {[%clk 0:00:11]} 50. Kb4 {[%clk 0:00:20]}  Kxh5 {[%clk 0:00:11]} 51. a5 {[%clk 0:00:21]}  g5 {[%clk 0:00:12]} 52. a6 {[%clk 0:00:21]}  g4 {[%clk 0:00:13]} 53. a7 {[%clk 0:00:22]}  g3 {[%clk 0:00:13]} 54. a8=Q {[%clk 0:00:23]}  Kg4 {[%clk 0:00:13]} 55. Qe4+ {[%clk 0:00:22]}  Kh3 {[%clk 0:00:13]} 56. Qh1+ {[%clk 0:00:22]}  Kg4 {[%clk 0:00:13]} 57. Kc3 {[%clk 0:00:22]}  h5 {[%clk 0:00:12]} 58. Kd3 {[%clk 0:00:22]}  h4 {[%clk 0:00:12]} 59. Ke3 {[%clk 0:00:22]}  h3 {[%clk 0:00:13]} 60. Qe4+ {[%clk 0:00:22]}  Kg5 {[%clk 0:00:13]} 61. Kf3 {[%clk 0:00:23]}  g2 {[%clk 0:00:11]} 62. Kf2 {[%clk 0:00:22]} 1-0


[Site "https://www.chess.com"]

[Event "Titled Tuesday Blitz August 15 Early 2023"]
[White "Korpics, Zsolt"]
[Black "Bagrationi, Alexander"]
[WhiteFideId "705241"]
[BlackFideId "14104954"]
[WhiteElo "2361"]
[BlackElo "2622"]
[Result "1-0"]
[Round "2"]
[TimeControl "180+1"]
[Date "2023.08.15"]
[WhiteClock "0:00:05"]
[BlackClock "0:00:00"]
[Board "152"]

1. e4 {[%clk 0:03:00]}  e5 {[%clk 0:02:50]} 2. Nf3 {[%clk 0:03:00]}  Nf6 {[%clk 0:02:46]} 3. Nxe5 {[%clk 0:03:00]}  d6 {[%clk 0:02:45]} 4. Nf3 {[%clk 0:02:59]}  Nxe4 {[%clk 0:02:44]} 5. Nc3 {[%clk 0:03:00]}  Nxc3 {[%clk 0:02:43]} 6. dxc3 {[%clk 0:03:01]}  Be7 {[%clk 0:02:44]} 7. Be3 {[%clk 0:03:00]}  O-O {[%clk 0:02:41]} 8. Qd2 {[%clk 0:03:00]}  Qe8 {[%clk 0:02:41]} 9. O-O-O {[%clk 0:02:34]}  Qa4 {[%clk 0:02:29]} 10. Kb1 {[%clk 0:02:32]}  Be6 {[%clk 0:02:28]} 11. a3 {[%clk 0:02:25]}  Nc6 {[%clk 0:02:28]} 12. Nd4 {[%clk 0:02:21]}  Nxd4 {[%clk 0:02:25]} 13. cxd4 {[%clk 0:02:20]}  d5 {[%clk 0:02:18]} 14. Bd3 {[%clk 0:02:15]}  b5 {[%clk 0:02:16]} 15. f4 {[%clk 0:01:53]}  f5 {[%clk 0:02:05]} 16. Rhe1 {[%clk 0:01:45]}  a5 {[%clk 0:01:58]} 17. Qe2 {[%clk 0:01:32]}  Bd7 {[%clk 0:01:52]} 18. Bc1 {[%clk 0:01:29]}  Bd6 {[%clk 0:01:51]} 19. b3 {[%clk 0:01:26]}  Qxd4 {[%clk 0:01:49]} 20. Bxf5 {[%clk 0:00:57]}  Qxd1 {[%clk 0:01:49]} 21. Bxh7+ {[%clk 0:00:39]}  Kxh7 {[%clk 0:01:46]} 22. Rxd1 {[%clk 0:00:38]}  c6 {[%clk 0:01:39]} 23. g3 {[%clk 0:00:35]}  a4 {[%clk 0:01:38]} 24. b4 {[%clk 0:00:32]}  Rae8 {[%clk 0:01:37]} 25. Qh5+ {[%clk 0:00:31]}  Kg8 {[%clk 0:01:37]} 26. Bb2 {[%clk 0:00:32]}  Bf5 {[%clk 0:01:23]} 27. g4 {[%clk 0:00:27]}  Be4 {[%clk 0:01:13]} 28. f5 {[%clk 0:00:28]}  Rf7 {[%clk 0:01:00]} 29. Qg5 {[%clk 0:00:25]}  Be7 {[%clk 0:00:51]} 30. Qe3 {[%clk 0:00:20]}  Bxb4 {[%clk 0:00:44]} 31. Qb6 {[%clk 0:00:20]}  Bf8 {[%clk 0:00:35]} 32. Qxc6 {[%clk 0:00:20]}  Ree7 {[%clk 0:00:34]} 33. Qxb5 {[%clk 0:00:20]}  Rb7 {[%clk 0:00:34]} 34. Qe8 {[%clk 0:00:19]}  Rfc7 {[%clk 0:00:32]} 35. Qe6+ {[%clk 0:00:11]}  Kh8 {[%clk 0:00:29]} 36. Rxd5 {[%clk 0:00:12]}  Bxc2+ {[%clk 0:00:24]} 37. Ka1 {[%clk 0:00:09]}  Bb3 {[%clk 0:00:15]} 38. Qe8 {[%clk 0:00:09]}  Bxd5 {[%clk 0:00:13]} 39. Qxf8+ {[%clk 0:00:09]}  Bg8 {[%clk 0:00:14]} 40. f6 {[%clk 0:00:09]}  Rf7 {[%clk 0:00:12]} 41. fxg7+ {[%clk 0:00:09]}  Kh7 {[%clk 0:00:12]} 42. Qc5 {[%clk 0:00:05]}  Rf1+ {[%clk 0:00:12]} 43. Bc1 {[%clk 0:00:05]}  Rb3 {[%clk 0:00:03]} 44. Qh5+ {[%clk 0:00:04]}  Kxg7 {[%clk 0:00:04]} 45. Qg5+ {[%clk 0:00:05]}  Kf7 {[%clk 0:00:00]} 46. h4 {[%clk 0:00:05]} 1-0


[Site "https://www.chess.com"]

[Event "Titled Tuesday Blitz August 15 Early 2023"]
[White "Belov, Alexei"]
[Black "rikchessmx"]
[WhiteFideId "4128206"]
[WhiteElo "2607"]
[BlackElo "2344"]
[Result "1-0"]
[Round "2"]
[TimeControl "180+1"]
[Date "2023.08.15"]
[WhiteClock "0:01:38"]
[BlackClock "0:02:09"]
[Board "158"]

1. e4 {[%clk 0:03:00]}  e5 {[%clk 0:02:59]} 2. Nf3 {[%clk 0:03:01]}  Nc6 {[%clk 0:02:55]} 3. Bb5 {[%clk 0:03:01]}  a6 {[%clk 0:02:55]} 4. Ba4 {[%clk 0:03:01]}  Bc5 {[%clk 0:02:55]} 5. c3 {[%clk 0:03:01]}  b5 {[%clk 0:02:54]} 6. Bb3 {[%clk 0:03:00]}  Qf6 {[%clk 0:02:54]} 7. O-O {[%clk 0:02:55]}  h6 {[%clk 0:02:50]} 8. d4 {[%clk 0:02:51]}  exd4 {[%clk 0:02:50]} 9. e5 {[%clk 0:02:51]}  Qg6 {[%clk 0:02:47]} 10. cxd4 {[%clk 0:02:50]}  Bb6 {[%clk 0:02:48]} 11. Nc3 {[%clk 0:02:38]}  Nge7 {[%clk 0:02:43]} 12. Nh4 {[%clk 0:02:23]}  Qh7 {[%clk 0:02:35]} 13. Bc2 {[%clk 0:02:20]}  Qg8 {[%clk 0:02:35]} 14. Be3 {[%clk 0:02:17]}  Bb7 {[%clk 0:02:33]} 15. f4 {[%clk 0:02:13]}  g5 {[%clk 0:02:28]} 16. fxg5 {[%clk 0:01:56]}  hxg5 {[%clk 0:02:29]} 17. Nf3 {[%clk 0:01:56]}  g4 {[%clk 0:02:24]} 18. Ng5 {[%clk 0:01:54]}  Nxe5 {[%clk 0:02:20]} 19. Nce4 {[%clk 0:01:39]}  f5 {[%clk 0:02:09]} 20. Nf6+ {[%clk 0:01:38]} 1-0


[Site "https://www.chess.com"]